[Event "2nd Cambridge Open 2024"]
[Site "Cambridge"]
[Date "2024.02.24"]
[Round "8.20"]
[White "Abhyuday, Santhosh"]
[Black "Sivanandan, Bodhana"]
[Result "1-0"]
[ECO "B11"]
[WhiteElo "2058"]
[BlackElo "1856"]
[Annotator "RC"]
[PlyCount "149"]
[EventDate "2024.02.18"]
[EventType "swiss"]
[EventCountry "ENG"]
[SourceTitle "playchess.com"]
[Source "ChessBase"]
[SourceQuality "1"]
[TimeControl "5400+30"]

1. e4 {[%emt 0:10:03]} c6 {[%emt 0:00:28]} 2. Nc3 {[%emt 0:00:16]} d5 {[%emt 0:00:29]} 3. Qf3 {[%emt 0:00:26]} dxe4 {[%emt 0:01:21]} 4. Nxe4 {[%emt 0:00:09]} Nf6 {[%emt 0:01:02]} 5. Bc4 {[%emt 0:00:19]} Nbd7 {[%emt 0:10:43]} 6. d4 {[%emt 0:00:21]} e6 {[%emt 0:00:50]} 7. Ne2 {[%emt 0:00:41]} Nxe4 {[%emt 0:02:26]} 8. Qxe4 {[%emt 0:00:41]} Nf6 {[%emt 0:00:49]} 9. Qf3 {[%emt 0:00:35]} Bd6 {[%emt 0:01:40]} 10. Bf4 {[%emt 0:09:08]} Bxf4 {[%emt 0:06:28]} 11. Qxf4 {[%emt 0:00:19]} Nd5 {[%emt 0:03:50]} 12. Qd2 {[%emt 0:07:04]} Bd7 {[%emt 0:07:01]} 13. Bd3 {[%emt 0:03:40]} Qe7 {[%emt 0:07:03]} 14. c3 {[%emt 0:01:10]} e5 {[%emt 0:04:03]} 15. dxe5 {[%emt 0:04:06]} Qxe5 {[%emt 0:00:11]} 16. c4 {[%emt 0:01:30]} Nf6 {[%emt 0:01:18]} 17. f4 {[%emt 0:02:20]} Qe7 {[%emt 0:02:04]} 18. O-O-O {[%emt 0:03:53]} O-O-O {[%emt 0:01:53]} 19. Rhe1 {[%emt 0:01:50]} Kb8 {[%emt 0:03:51]} 20. Nc3 {[%emt 0:08:29]} Qd6 {[%emt 0:05:48]} 21. Qf2 {[%emt 0:04:05]} Bg4 {[%emt 0:04:21]} 22. Rd2 {[%emt 0:03:36]} Qc7 {[%emt 0:03:01]} 23. h3 {[%emt 0:03:26]} Bc8 {[%emt 0:01:11]} 24. g4 {[%emt 0:04:17]} h6 {[%emt 0:03:27]} 25. Kc2 {[%emt 0:01:25]} Rhe8 {[%emt 0:01:13]} 26. Rde2 {[%emt 0:03:28]} Qd6 {[%emt 0:02:57]} 27. Qf3 {[%emt 0:00:26]} Rxe2+ {[%emt 0:01:27]} 28. Rxe2 {[%emt 0:00:06]} Nd7 {[%emt 0:01:02]} 29. Ne4 {[%emt 0:01:41]} Qb4 {[%emt 0:01:04]} 30. a3 {[%emt 0:02:14]} Qa4+ {[%emt 0:00:20]} 31. Kc1 {[%emt 0:00:05]} Qa5 {[%emt 0:05:54]} 32. Bc2 {[%emt 0:02:03]} Qc7 {[%emt 0:00:36]} 33. b3 {[%emt 0:04:49]} Nf8 {[%emt 0:02:07]} 34. f5 {[%emt 0:01:17]} Nd7 {[%emt 0:00:26]} 35. Qc3 {[%emt 0:03:09]} f6 {[%emt 0:01:02]} 36. Nd2 {[%emt 0:00:43]} Qd6 {[%emt 0:00:59]} 37. Kb2 {[%emt 0:00:45]} Nc5 {[%emt 0:01:50]} 38. Ne4 {[%emt 0:01:45]} Nxe4 {[%emt 0:00:51]} 39. Rxe4 {[%emt 0:00:13]} h5 {[%emt 0:00:57]} 40. Qe3 {[%emt 0:02:33]} hxg4 {[%emt 0:02:48]} 41. hxg4 {[%emt 0:00:10]} c5 {[%emt 0:01:59]} 42. Kc3 {[%emt 0:02:04]} Rd7 {[%emt 0:01:04]} 43. b4 {[%emt 0:00:51]} b6 {[%emt 0:01:12]} 44. Kb3 {[%emt 0:00:58]} cxb4 {[%emt 0:01:25]} 45. axb4 {[%emt 0:00:05]} a5 {[%emt 0:00:39]} 46. c5 {[%emt 0:02:02]} bxc5 {[%emt 0:01:07]} 47. bxc5 {[%emt 0:00:05]} Qd5+ {[%emt 0:00:37]} 48. Kb2 {[%emt 0:02:37]} Rb7+ {[%emt 0:01:34]} 49. Bb3 {[%emt 0:02:49]} Qc6 {[%emt 0:00:42]} 50. Ka2 {[%emt 0:01:56]} Rc7 {[%emt 0:00:53]} 51. Rc4 {[%emt 0:01:10]} Ba6 {[%emt 0:01:04]} 52. Rc2 {[%emt 0:00:53]} Rc8 {[%emt 0:00:59]} 53. Be6 {[%emt 0:00:34]} Rc7 {[%emt 0:00:18]} 54. Rb2+ {[%emt 0:00:31]} Ka7 {[%emt 0:00:38]} 55. Rc2 {[%emt 0:01:31]} Rb7 {[%emt 0:00:39]} 56. Qa3 {[%emt 0:00:36]} Rb4 {[%emt 0:00:08]} 57. Bb3 {[%emt 0:00:26]} Rxg4 {[%emt 0:01:55]} 58. Qxa5 {[%emt 0:00:18]} Rd4 {[%emt 0:00:45]} 59. Qc3 {[%emt 0:00:44]} Rd7 {[%emt 0:00:24]} 60. Qb4 {[%emt 0:00:29]} Rb7 {[%emt 0:00:23]} 61. Qd4 {[%emt 0:00:14]} Rd7 {[%emt 0:00:29]} 62. Qf4 {[%emt 0:00:29]} Rd8 {[%emt 0:00:34]} 63. Ba4 {[%emt 0:00:41]} Qd5+ {[%emt 0:00:14]} 64. Bb3 {[%emt 0:00:05]} Qc6 {[%emt 0:00:12]} 65. Qb4 {[%emt 0:01:00]} Rb8 {[%emt 0:01:03]} 66. Qa3 {[%emt 0:00:14]} Rd8 {[%emt 0:00:47]} 67. Bc4 {[%emt 0:00:45]} Rd7 {[%emt 0:00:19]} 68. Re2 {[%emt 0:00:33]} Rb7 {[%emt 0:00:57]} 69. Rd2 {[%emt 0:00:21]} Rb8 {[%emt 0:00:26]} 70. Rd7+ {[%emt 0:00:36]} Rb7 {[%emt 0:00:04]} 71. Rd2 {[%emt 0:00:28]} Rb8 {[%emt 0:00:31]} 72. Be2 {[%emt 0:00:15]} Rb7 {[%emt 0:01:05]} 73. Rd6 {[%emt 0:00:15]} Qc7 {[%emt 0:00:31]} 74. Rxa6+ {[%emt 0:00:07]} Kb8 {[%emt 0:00:05]} 75. Ra8# {[%emt 0:00:03]} 1-0

[Event "2nd Cambridge Open 2024"]
[Site "Cambridge"]
[Date "2024.02.24"]
[Round "8.21"]
[White "Martin, Lewis"]
[Black "Nawalaniec, Adam"]
[Result "0-1"]
[ECO "A13"]
[WhiteElo "2144"]
[BlackElo "1876"]
[Annotator "RC"]
[PlyCount "80"]
[EventDate "2024.02.18"]
[EventType "swiss"]
[EventCountry "ENG"]
[SourceTitle "playchess.com"]
[Source "ChessBase"]
[SourceQuality "1"]
[TimeControl "5400+30"]

1. c4 {[%emt 0:00:03]} e6 {[%emt 0:00:08]} 2. g3 {[%emt 0:00:16]} d5 {[%emt 0:00:05]} 3. Bg2 {[%emt 0:00:08]} Nf6 {[%emt 0:00:06]} 4. Nf3 {[%emt 0:00:11]} dxc4 {[%emt 0:00:06]} 5. Na3 {[%emt 0:00:20]} Bxa3 {[%emt 0:00:06]} 6. bxa3 {[%emt 0:00:04]} b5 {[%emt 0:03:05]} 7. Ne5 {[%emt 0:02:51]} Nd5 {[%emt 0:00:46]} 8. O-O {[%emt 0:04:11]} f6 {[%emt 0:07:52]} 9. e4 {[%emt 0:04:09]} Ne7 {[%emt 0:02:42]} 10. Ng4 {[%emt 0:09:27]} e5 {[%emt 0:12:40]} 11. a4 {[%emt 0:00:24]} b4 {[%emt 0:04:11]} 12. Ne3 {[%emt 0:01:58]} Ba6 {[%emt 0:07:23]} 13. Re1 {[%emt 0:00:38]} Nbc6 {[%emt 0:04:17]} 14. Bf1 {[%emt 0:04:02]} Qd4 {[%emt 0:04:04]} 15. Nc2 {[%emt 0:02:08]} Qc5 {[%emt 0:03:02]} 16. Bb2 {[%emt 0:02:04]} Rd8 {[%emt 0:01:46]} 17. Qc1 {[%emt 0:11:14]} Nd4 {[%emt 0:07:58]} 18. Re3 {[%emt 0:02:16]} Nec6 {[%emt 0:04:22]} 19. Ne1 {[%emt 0:02:24]} Na5 {[%emt 0:03:22]} 20. Qd1 {[%emt 0:03:45]} O-O {[%emt 0:03:50]} 21. Rc1 {[%emt 0:00:36]} Qb6 {[%emt 0:02:23]} 22. Qh5 {[%emt 0:06:05]} Qc6 {[%emt 0:02:02]} 23. f4 {[%emt 0:13:38]} Qxa4 {[%emt 0:04:49]} 24. fxe5 {[%emt 0:01:38]} fxe5 {[%emt 0:03:49]} 25. Bh3 {[%emt 0:00:15]} Qe8 {[%emt 0:01:25]} 26. Qg5 {[%emt 0:02:44]} h6 {[%emt 0:01:33]} 27. Qh4 {[%emt 0:00:27]} c3 {[%emt 0:04:05]} 28. dxc3 {[%emt 0:01:05]} Nc4 {[%emt 0:01:10]} 29. cxd4 {[%emt 0:00:23]} Nxe3 {[%emt 0:00:09]} 30. d5 {[%emt 0:04:00]} Rd6 {[%emt 0:02:42]} 31. g4 {[%emt 0:03:24]} Rdf6 {[%emt 0:00:34]} 32. Nc2 {[%emt 0:02:19]} Nc4 {[%emt 0:00:50]} 33. Ba1 {[%emt 0:01:01]} Nd2 {[%emt 0:00:21]} 34. Qg3 {[%emt 0:01:19]} Rf3 {[%emt 0:01:56]} 35. Qh4 {[%emt 0:01:38]} Rf1+ {[%emt 0:00:38]} 36. Rxf1 {[%emt 0:01:07]} Rxf1+ {[%emt 0:00:07]} 37. Bxf1 {[%emt 0:00:04]} Nf3+ {[%emt 0:00:07]} 38. Kf2 {[%emt 0:01:03]} Nxh4 {[%emt 0:00:06]} 39. Bxa6 {[%emt 0:00:06]} Qa4 {[%emt 0:00:40]} 40. Bd3 {[%emt 0:00:50]} Qxa2 {[%emt 0:00:08]} 0-1

[Event "2nd Cambridge Open 2024"]
[Site "Cambridge"]
[Date "2024.02.24"]
[Round "8.22"]
[White "Underwood, Jon"]
[Black "Waller, Dan"]
[Result "0-1"]
[ECO "A25"]
[WhiteElo "1993"]
[BlackElo "2126"]
[Annotator "RC"]
[PlyCount "100"]
[EventDate "2024.02.18"]
[EventType "swiss"]
[EventCountry "ENG"]
[SourceTitle "playchess.com"]
[Source "ChessBase"]
[SourceQuality "1"]
[TimeControl "5400+30"]

1. c4 {[%emt 0:00:12]} e5 {[%emt 0:00:13]} 2. g3 {[%emt 0:00:14]} Nc6 {[%emt 0:00:14]} 3. Bg2 {[%emt 0:00:08]} g6 {[%emt 0:00:05]} 4. Nc3 {[%emt 0:00:32]} Bg7 {[%emt 0:00:13]} 5. e3 {[%emt 0:00:09]} d6 {[%emt 0:01:23]} 6. Nge2 {[%emt 0:00:15]} f5 {[%emt 0:03:49]} 7. d4 {[%emt 0:01:05]} Nge7 {[%emt 0:04:43]} 8. O-O {[%emt 0:00:21]} O-O {[%emt 0:03:18]} 9. b3 {[%emt 0:01:48]} Kh8 {[%emt 0:02:39]} 10. Bb2 {[%emt 0:04:03]} Bd7 {[%emt 0:02:22]} 11. Qd2 {[%emt 0:00:50]} Rc8 {[%emt 0:03:01]} 12. Rad1 {[%emt 0:02:41]} e4 {[%emt 0:04:20]} 13. Nf4 {[%emt 0:02:25]} Qe8 {[%emt 0:02:07]} 14. f3 {[%emt 0:00:17]} exf3 {[%emt 0:00:41]} 15. Bxf3 {[%emt 0:00:11]} Qf7 {[%emt 0:08:36]} 16. Rde1 {[%emt 0:02:43]} Ng8 {[%emt 0:05:00]} 17. Ncd5 {[%emt 0:01:52]} Nf6 {[%emt 0:00:41]} 18. Nxf6 {[%emt 0:02:07]} Qxf6 {[%emt 0:02:59]} 19. b4 {[%emt 0:01:51]} b6 {[%emt 0:00:53]} 20. b5 {[%emt 0:00:40]} Na5 {[%emt 0:06:10]} 21. Rc1 {[%emt 0:07:28]} Rfe8 {[%emt 0:05:40]} 22. Ba3 {[%emt 0:07:50]} Be6 {[%emt 0:04:03]} 23. Nd5 {[%emt 0:08:27]} Qf7 {[%emt 0:00:09]} 24. e4 {[%emt 0:01:53]} fxe4 {[%emt 0:05:25]} 25. Bxe4 {[%emt 0:00:30]} Qg8 {[%emt 0:00:45]} 26. Qd3 {[%emt 0:04:18]} a6 {[%emt 0:08:40]} 27. bxa6 {[%emt 0:09:05]} b5 {[%emt 0:00:15]} 28. a7 {[%emt 0:07:04]} Nxc4 {[%emt 0:03:05]} 29. Nf4 {[%emt 0:04:43]} Nxa3 {[%emt 0:02:30]} 30. Qxa3 {[%emt 0:00:14]} Bxd4+ {[%emt 0:01:35]} 31. Kh1 {[%emt 0:00:21]} Bc4 {[%emt 0:02:18]} 32. Rfe1 {[%emt 0:04:03]} g5 {[%emt 0:02:23]} 33. Ng2 {[%emt 0:03:37]} c5 {[%emt 0:03:02]} 34. Bb7 {[%emt 0:02:59]} Bd5 {[%emt 0:04:16]} 35. Bxc8 {[%emt 0:04:31]} Rxc8 {[%emt 0:01:36]} 36. Rcd1 {[%emt 0:02:54]} Qg7 {[%emt 0:00:51]} 37. Qa6 {[%emt 0:00:53]} Qb7 {[%emt 0:02:04]} 38. Qxb7 {[%emt 0:00:03]} Bxb7 {[%emt 0:00:03]} 39. Re7 {[%emt 0:00:39]} Bc6 {[%emt 0:00:18]} 40. Rf1 {[%emt 0:00:48]} c4 {[%emt 0:00:20]} 41. Rff7 {[%emt 0:00:41]} c3 {[%emt 0:00:21]} 42. Rc7 {[%emt 0:00:11]} Rxc7 {[%emt 0:00:19]} 43. Rxc7 {[%emt 0:00:03]} Bd5 {[%emt 0:01:57]} 44. h4 {[%emt 0:09:26]} Bc5 {[%emt 0:00:52]} 45. Kh2 {[%emt 0:00:55]} c2 {[%emt 0:00:15]} 46. Rc8+ {[%emt 0:01:28]} Kg7 {[%emt 0:00:05]} 47. Rc7+ {[%emt 0:00:46]} Kf8 {[%emt 0:00:43]} 48. Ne3 {[%emt 0:00:50]} c1=Q {[%emt 0:01:05]} 49. Nxd5 {[%emt 0:00:18]} Qg1+ {[%emt 0:00:08]} 50. Kh3 {[%emt 0:00:08]} Bxa7 {[%emt 0:00:06]} 0-1

[Event "2nd Cambridge Open 2024"]
[Site "Cambridge"]
[Date "2024.02.24"]
[Round "8.23"]
[White "Pereslavtsev, Alexandr"]
[Black "Southcott-Moyers, Indy"]
[Result "1/2-1/2"]
[ECO "D36"]
[WhiteElo "1696"]
[BlackElo "2123"]
[Annotator "RC"]
[PlyCount "106"]
[EventDate "2024.02.18"]
[EventType "swiss"]
[EventCountry "ENG"]
[SourceTitle "playchess.com"]
[Source "ChessBase"]
[SourceQuality "1"]
[TimeControl "5400+30"]

1. d4 {[%emt 0:00:01]} d5 {[%emt 0:00:13]} 2. c4 {[%emt 0:00:07]} e6 {[%emt 0:00:08]} 3. Nc3 {[%emt 0:00:02]} Nf6 {[%emt 0:00:16]} 4. cxd5 {[%emt 0:00:03]} exd5 {[%emt 0:00:49]} 5. Bg5 {[%emt 0:00:09]} c6 {[%emt 0:00:21]} 6. e3 {[%emt 0:00:15]} Be7 {[%emt 0:01:43]} 7. Bd3 {[%emt 0:00:09]} h6 {[%emt 0:00:46]} 8. Bh4 {[%emt 0:00:18]} O-O {[%emt 0:02:10]} 9. Qc2 {[%emt 0:00:14]} Re8 {[%emt 0:01:48]} 10. Nf3 {[%emt 0:00:24]} Ne4 {[%emt 0:06:36]} 11. Bxe7 {[%emt 0:04:12]} Qxe7 {[%emt 0:00:09]} 12. Bxe4 {[%emt 0:02:50]} dxe4 {[%emt 0:00:10]} 13. Nd2 {[%emt 0:00:32]} f5 {[%emt 0:02:28]} 14. O-O {[%emt 0:00:13]} Be6 {[%emt 0:01:42]} 15. Rab1 {[%emt 0:02:37]} Nd7 {[%emt 0:00:23]} 16. b4 {[%emt 0:00:26]} b5 {[%emt 0:01:51]} 17. a4 {[%emt 0:08:52]} a6 {[%emt 0:03:58]} 18. a5 {[%emt 0:00:39]} Nf6 {[%emt 0:06:45]} 19. Rfc1 {[%emt 0:05:55]} Rec8 {[%emt 0:08:52]} 20. Ne2 {[%emt 0:15:54]} Nd5 {[%emt 0:02:00]} 21. Qc5 {[%emt 0:00:30]} Kf7 {[%emt 0:05:20]} 22. Qxe7+ {[%emt 0:09:26]} Kxe7 {[%emt 0:00:12]} 23. Nc3 {[%emt 0:00:47]} Nf6 {[%emt 0:01:30]} 24. f3 {[%emt 0:01:44]} exf3 {[%emt 0:11:09]} 25. gxf3 {[%emt 0:00:35]} Rd8 {[%emt 0:01:21]} 26. Ne2 {[%emt 0:04:51]} Rac8 {[%emt 0:05:21]} 27. Nf4 {[%emt 0:05:38]} Bf7 {[%emt 0:05:33]} 28. Nd3 {[%emt 0:04:30]} Rd6 {[%emt 0:03:32]} 29. Kf2 {[%emt 0:06:30]} g5 {[%emt 0:03:37]} 30. Ne5 {[%emt 0:07:24]} f4 {[%emt 0:02:18]} 31. Ne4 {[%emt 0:08:53]} Nxe4+ {[%emt 0:06:02]} 32. fxe4 {[%emt 0:00:11]} Bg6 {[%emt 0:04:28]} 33. Nxg6+ {[%emt 0:05:55]} Rxg6 {[%emt 0:00:02]} 34. Rc5 {[%emt 0:00:15]} Rf8 {[%emt 0:04:12]} 35. e5 {[%emt 0:03:11]} g4 {[%emt 0:02:10]} 36. exf4 {[%emt 0:02:07]} Rxf4+ {[%emt 0:00:09]} 37. Ke3 {[%emt 0:00:02]} Rf3+ {[%emt 0:05:39]} 38. Ke4 {[%emt 0:00:01]} Rf8 {[%emt 0:01:24]} 39. Rbc1 {[%emt 0:00:17]} g3 {[%emt 0:00:04]} 40. hxg3 {[%emt 0:00:27]} Rg4+ {[%emt 0:00:05]} 41. Ke3 {[%emt 0:00:30]} Rxg3+ {[%emt 0:00:06]} 42. Ke4 {[%emt 0:00:18]} Rg4+ {[%emt 0:00:40]} 43. Ke3 {[%emt 0:00:04]} Rff4 {[%emt 0:01:44]} 44. Rxc6 {[%emt 0:00:14]} Re4+ {[%emt 0:00:04]} 45. Kf3 {[%emt 0:00:15]} Rgf4+ {[%emt 0:00:53]} 46. Kg3 {[%emt 0:00:11]} Rg4+ {[%emt 0:00:28]} 47. Kh3 {[%emt 0:00:52]} Rh4+ {[%emt 0:00:31]} 48. Kg3 {[%emt 0:00:06]} Reg4+ {[%emt 0:00:56]} 49. Kf3 {[%emt 0:00:09]} Rf4+ {[%emt 0:00:21]} 50. Kg3 {[%emt 0:00:26]} Rhg4+ {[%emt 0:00:23]} 51. Kh3 {[%emt 0:00:09]} Rh4+ {[%emt 0:00:08]} 52. Kg3 {[%emt 0:00:06]} Rhg4+ {[%emt 0:00:07]} 53. Kh3 {[%emt 0:00:04]} Rh4+ {[%emt 0:00:23]} 1/2-1/2

[Event "2nd Cambridge Open 2024"]
[Site "Cambridge"]
[Date "2024.02.24"]
[Round "8.24"]
[White "Borsos, Bogdan"]
[Black "Dierssen Garcia-Barredo, Guiller"]
[Result "1/2-1/2"]
[ECO "B27"]
[WhiteElo "2094"]
[BlackElo "1937"]
[Annotator "RC"]
[PlyCount "87"]
[EventDate "2024.02.18"]
[EventType "swiss"]
[EventCountry "ENG"]
[SourceTitle "playchess.com"]
[Source "ChessBase"]
[SourceQuality "1"]
[TimeControl "5400+30"]

1. Nf3 {[%emt 0:00:09]} c5 {[%emt 0:00:06]} 2. c4 {[%emt 0:00:39]} g6 {[%emt 0:00:08]} 3. e3 {[%emt 0:00:41]} Bg7 {[%emt 0:00:49]} 4. d4 {[%emt 0:00:09]} cxd4 {[%emt 0:00:10]} 5. exd4 {[%emt 0:00:06]} d5 {[%emt 0:00:09]} 6. cxd5 {[%emt 0:07:39]} Nf6 {[%emt 0:00:08]} 7. Bb5+ {[%emt 0:02:18]} Nbd7 {[%emt 0:00:13]} 8. d6 {[%emt 0:00:11]} exd6 {[%emt 0:02:11]} 9. Qe2+ {[%emt 0:00:47]} Qe7 {[%emt 0:00:16]} 10. Qxe7+ {[%emt 0:00:07]} Kxe7 {[%emt 0:07:08]} 11. Nc3 {[%emt 0:00:11]} h6 {[%emt 0:05:54]} 12. O-O {[%emt 0:00:22]} Nb6 {[%emt 0:00:10]} 13. Re1+ {[%emt 0:01:10]} Be6 {[%emt 0:00:22]} 14. h3 {[%emt 0:22:30]} a6 {[%emt 0:02:43]} 15. Bd3 {[%emt 0:02:58]} Nbd5 {[%emt 0:00:33]} 16. Bd2 {[%emt 0:02:51]} Rac8 {[%emt 0:00:27]} 17. Nxd5+ {[%emt 0:03:48]} Nxd5 {[%emt 0:00:10]} 18. Rac1 {[%emt 0:04:32]} Kd7 {[%emt 0:00:13]} 19. b3 {[%emt 0:05:54]} Rxc1 {[%emt 0:09:42]} 20. Rxc1 {[%emt 0:00:07]} Rc8 {[%emt 0:00:09]} 21. Rxc8 {[%emt 0:00:17]} Kxc8 {[%emt 0:00:04]} 22. Kf1 {[%emt 0:15:25]} Kd7 {[%emt 0:01:37]} 23. Ke2 {[%emt 0:01:35]} Nc7 {[%emt 0:03:16]} 24. Be4 {[%emt 0:01:31]} Bd5 {[%emt 0:00:40]} 25. Bxd5 {[%emt 0:00:37]} Nxd5 {[%emt 0:00:05]} 26. Kd3 {[%emt 0:00:07]} Ke6 {[%emt 0:03:53]} 27. Ng1 {[%emt 0:01:20]} b5 {[%emt 0:04:48]} 28. Ne2 {[%emt 0:01:35]} f5 {[%emt 0:06:06]} 29. Nf4+ {[%emt 0:00:55]} Nxf4+ {[%emt 0:00:13]} 30. Bxf4 {[%emt 0:00:03]} Kd5 {[%emt 0:00:19]} 31. f3 {[%emt 0:00:53]} h5 {[%emt 0:02:04]} 32. Be3 {[%emt 0:04:16]} Bf6 {[%emt 0:00:33]} 33. g4 {[%emt 0:04:53]} fxg4 {[%emt 0:01:19]} 34. fxg4 {[%emt 0:00:06]} hxg4 {[%emt 0:00:27]} 35. hxg4 {[%emt 0:00:06]} Bh4 {[%emt 0:00:12]} 36. Bg1 {[%emt 0:04:27]} Bg5 {[%emt 0:01:45]} 37. Bh2 {[%emt 0:00:25]} Bf6 {[%emt 0:01:00]} 38. Bg3 {[%emt 0:02:05]} Bxd4 {[%emt 0:02:53]} 39. Bxd6 {[%emt 0:00:06]} Be5 {[%emt 0:03:22]} 40. Be7 {[%emt 0:00:36]} Bg7 {[%emt 0:03:21]} 41. Bd8 {[%emt 0:01:34]} Ke5 {[%emt 0:02:33]} 42. Bc7+ {[%emt 0:00:14]} Kd5 {[%emt 0:00:11]} 43. Bd8 {[%emt 0:00:42]} Bf8 {[%emt 0:00:19]} 44. Bc7 {[%emt 0:00:42]} 1/2-1/2

[Event "2nd Cambridge Open 2024"]
[Site "Cambridge"]
[Date "2024.02.24"]
[Round "8.25"]
[White "Woltery, Nicolai"]
[Black "Denderski, Piotr"]
[Result "0-1"]
[ECO "D34"]
[WhiteElo "1979"]
[BlackElo "2137"]
[Annotator "RC"]
[PlyCount "164"]
[EventDate "2024.02.18"]
[EventType "swiss"]
[EventCountry "ENG"]
[SourceTitle "playchess.com"]
[Source "ChessBase"]
[SourceQuality "1"]
[TimeControl "5400+30"]

1. c4 {[%emt 0:09:34]} Nf6 {[%emt 0:00:50]} 2. Nc3 {[%emt 0:00:03]} c5 {[%emt 0:02:22]} 3. g3 {[%emt 0:00:03]} Nc6 {[%emt 0:00:24]} 4. Bg2 {[%emt 0:00:11]} e6 {[%emt 0:00:40]} 5. Nf3 {[%emt 0:00:18]} d5 {[%emt 0:00:55]} 6. cxd5 {[%emt 0:00:17]} exd5 {[%emt 0:00:33]} 7. d4 {[%emt 0:00:07]} h6 {[%emt 0:03:29]} 8. O-O {[%emt 0:02:12]} Be7 {[%emt 0:06:51]} 9. dxc5 {[%emt 0:02:45]} Bxc5 {[%emt 0:00:24]} 10. a3 {[%emt 0:03:05]} a5 {[%emt 0:05:38]} 11. Ne1 {[%emt 0:10:42]} d4 {[%emt 0:03:50]} 12. Nd3 {[%emt 0:06:48]} Be7 {[%emt 0:07:55]} 13. Na4 {[%emt 0:05:47]} O-O {[%emt 0:08:01]} 14. Bf4 {[%emt 0:09:36]} Be6 {[%emt 0:10:11]} 15. Ndc5 {[%emt 0:02:54]} Bxc5 {[%emt 0:01:46]} 16. Nxc5 {[%emt 0:00:06]} Bd5 {[%emt 0:04:46]} 17. Bxd5 {[%emt 0:05:29]} Qxd5 {[%emt 0:07:42]} 18. Rc1 {[%emt 0:03:17]} b6 {[%emt 0:14:05]} 19. Nd3 {[%emt 0:03:07]} Rac8 {[%emt 0:01:03]} 20. Bd2 {[%emt 0:07:07]} Rfe8 {[%emt 0:01:28]} 21. f3 {[%emt 0:03:40]} Qd7 {[%emt 0:00:23]} 22. Re1 {[%emt 0:03:18]} Nd5 {[%emt 0:01:47]} 23. Qb3 {[%emt 0:04:25]} g5 {[%emt 0:04:55]} 24. Nf2 {[%emt 0:02:03]} Re6 {[%emt 0:01:20]} 25. Qb5 {[%emt 0:01:35]} Rce8 {[%emt 0:01:17]} 26. Kf1 {[%emt 0:03:42]} Kg7 {[%emt 0:01:31]} 27. Rc2 {[%emt 0:03:55]} f5 {[%emt 0:08:14]} 28. Qd3 {[%emt 0:00:11]} Re3 {[%emt 0:00:46]} 29. Bxe3 {[%emt 0:03:05]} Nxe3+ {[%emt 0:00:04]} 30. Kg1 {[%emt 0:00:01]} Nxc2 {[%emt 0:00:06]} 31. Qxc2 {[%emt 0:00:02]} Qd5 {[%emt 0:01:28]} 32. Rc1 {[%emt 0:00:28]} Re6 {[%emt 0:00:20]} 33. Nd3 {[%emt 0:03:11]} Qd6 {[%emt 0:00:25]} 34. Kf1 {[%emt 0:02:21]} h5 {[%emt 0:00:20]} 35. Nf2 {[%emt 0:00:14]} Qe5 {[%emt 0:00:21]} 36. Qd2 {[%emt 0:00:43]} Rg6 {[%emt 0:00:44]} 37. f4 {[%emt 0:01:39]} gxf4 {[%emt 0:00:38]} 38. Qxf4 {[%emt 0:00:08]} Qxf4 {[%emt 0:00:31]} 39. gxf4 {[%emt 0:00:01]} Kf7 {[%emt 0:00:10]} 40. Nd3 {[%emt 0:00:39]} Ke7 {[%emt 0:00:04]} 41. Kf2 {[%emt 0:00:06]} h4 {[%emt 0:00:19]} 42. a4 {[%emt 0:00:29]} h3 {[%emt 0:00:20]} 43. Rg1 {[%emt 0:00:11]} Rxg1 {[%emt 0:00:11]} 44. Kxg1 {[%emt 0:00:01]} Kd6 {[%emt 0:00:04]} 45. Kf2 {[%emt 0:00:16]} Kd5 {[%emt 0:00:02]} 46. Kg3 {[%emt 0:00:39]} Ke4 {[%emt 0:00:03]} 47. Kf2 {[%emt 0:01:38]} Ne7 {[%emt 0:00:05]} 48. Ne5 {[%emt 0:00:51]} Kxf4 {[%emt 0:00:17]} 49. Nf3 {[%emt 0:00:19]} Nc6 {[%emt 0:00:05]} 50. Nd2 {[%emt 0:00:16]} Ne5 {[%emt 0:00:08]} 51. Nb3 {[%emt 0:00:25]} Ng4+ {[%emt 0:00:05]} 52. Ke1 {[%emt 0:00:28]} Ke3 {[%emt 0:00:10]} 53. Nd2 {[%emt 0:00:06]} Ne5 {[%emt 0:01:04]} 54. Nf1+ {[%emt 0:00:12]} Ke4 {[%emt 0:00:18]} 55. Ng3+ {[%emt 0:00:14]} Kf4 {[%emt 0:00:08]} 56. Nh5+ {[%emt 0:00:10]} Kg5 {[%emt 0:00:11]} 57. Ng7 {[%emt 0:00:13]} d3 {[%emt 0:01:12]} 58. Ne6+ {[%emt 0:00:06]} Kg4 {[%emt 0:00:11]} 59. Nc7 {[%emt 0:00:34]} dxe2 {[%emt 0:03:20]} 60. Kxe2 {[%emt 0:00:01]} Kf4 {[%emt 0:02:26]} 61. Ne6+ {[%emt 0:00:33]} Ke4 {[%emt 0:00:34]} 62. Ng5+ {[%emt 0:00:13]} Kd4 {[%emt 0:00:04]} 63. Nxh3 {[%emt 0:00:08]} Ng4 {[%emt 0:00:03]} 64. Kf3 {[%emt 0:01:40]} Nxh2+ {[%emt 0:00:04]} 65. Kf4 {[%emt 0:00:01]} Kc4 {[%emt 0:00:11]} 66. Kxf5 {[%emt 0:00:09]} Kb4 {[%emt 0:00:16]} 67. Nf4 {[%emt 0:00:42]} Kxa4 {[%emt 0:00:08]} 68. Nd5 {[%emt 0:00:06]} b5 {[%emt 0:00:32]} 69. Nc3+ {[%emt 0:00:08]} Kb4 {[%emt 0:00:04]} 70. Ke4 {[%emt 0:00:21]} Kc4 {[%emt 0:00:44]} 71. Ne2 {[%emt 0:02:05]} Nf1 {[%emt 0:00:11]} 72. Nc1 {[%emt 0:00:24]} Nd2+ {[%emt 0:00:07]} 73. Ke3 {[%emt 0:00:08]} Nb3 {[%emt 0:00:10]} 74. Nd3 {[%emt 0:00:57]} Nc5 {[%emt 0:00:38]} 75. Nc1 {[%emt 0:01:03]} b4 {[%emt 0:00:36]} 76. Ke2 {[%emt 0:00:26]} a4 {[%emt 0:02:04]} 77. Kd1 {[%emt 0:00:48]} Nb3 {[%emt 0:02:18]} 78. Na2 {[%emt 0:00:46]} Nd4 {[%emt 0:00:11]} 79. Nc1 {[%emt 0:00:43]} b3 {[%emt 0:00:28]} 80. Kd2 {[%emt 0:00:29]} a3 {[%emt 0:00:06]} 81. Nxb3 {[%emt 0:01:06]} Nxb3+ {[%emt 0:00:17]} 82. Kc2 {[%emt 0:00:05]} a2 {[%emt 0:00:03]} 0-1

[Event "2nd Cambridge Open 2024"]
[Site "Cambridge"]
[Date "2024.02.24"]
[Round "8.26"]
[White "Banerjee, Supratit"]
[Black "Hutchinson, Norman A"]
[Result "1-0"]
[ECO "B19"]
[WhiteElo "1984"]
[BlackElo "1962"]
[Annotator "RC"]
[PlyCount "45"]
[EventDate "2024.02.18"]
[EventType "swiss"]
[EventCountry "ENG"]
[SourceTitle "playchess.com"]
[Source "ChessBase"]
[SourceQuality "1"]
[TimeControl "5400+30"]

1. e4 {[%emt 0:00:06]} c6 {[%emt 0:00:06]} 2. d4 {[%emt 0:00:07]} d5 {[%emt 0:00:05]} 3. Nd2 {[%emt 0:00:04]} dxe4 {[%emt 0:00:07]} 4. Nxe4 {[%emt 0:01:43]} Bf5 {[%emt 0:00:06]} 5. Ng3 {[%emt 0:00:04]} Bg6 {[%emt 0:00:08]} 6. Nf3 {[%emt 0:00:04]} Nd7 {[%emt 0:00:05]} 7. h4 {[%emt 0:01:04]} h6 {[%emt 0:00:07]} 8. h5 {[%emt 0:00:12]} Bh7 {[%emt 0:00:06]} 9. Bd3 {[%emt 0:00:05]} Bxd3 {[%emt 0:00:08]} 10. Qxd3 {[%emt 0:00:02]} e6 {[%emt 0:00:11]} 11. Bf4 {[%emt 0:02:12]} Qa5+ {[%emt 0:00:15]} 12. c3 {[%emt 0:00:23]} Ngf6 {[%emt 0:01:15]} 13. a3 {[%emt 0:14:35]} c5 {[%emt 0:11:05]} 14. Ne5 {[%emt 0:04:21]} Nxe5 {[%emt 0:07:34]} 15. Bxe5 {[%emt 0:05:54]} Nd7 {[%emt 0:01:12]} 16. Bf4 {[%emt 0:06:22]} cxd4 {[%emt 0:06:16]} 17. Qxd4 {[%emt 0:03:52]} e5 {[%emt 0:04:34]} 18. Qe4 {[%emt 0:02:39]} Be7 {[%emt 0:09:24]} 19. Nf5 {[%emt 0:04:21]} Nc5 {[%emt 0:04:30]} 20. Qe3 {[%emt 0:02:17]} Qb5 {[%emt 0:07:07]} 21. O-O-O {[%emt 0:01:55]} Na4 {[%emt 0:08:00]} 22. Rd2 {[%emt 0:02:26]} Qc5 {[%emt 0:02:52]} 23. Qxe5 {[%emt 0:00:32]} 1-0